[Event "13th Poti Nana Aleksandria Cup"]
[Site "Poti"]
[Date "2018.07.18"]
[Round "7"]
[White "Gordon, Evgeny"]
[Black "Shanya Mishra"]
[Result "1-0"]
[ECO "E32"]
[WhiteElo "2016"]
[BlackElo "1980"]
[Annotator "NA"]
[PlyCount "101"]
[EventDate "2018.07.13"]
[EventType "swiss"]
[EventCountry "GEO"]
[SourceTitle "playchess.com"]
[Source "ChessBase"]
[SourceQuality "1"]
[TimeControl "40/5400+30:1800+30"]

1. d4 {[%emt 0:00:00]} Nf6 {[%emt 0:02:42]} 2. c4 {[%emt 0:00:00]} e6 {[%emt 0:00:28]} 3. Nc3 {[%emt 0:00:00]} Bb4 {[%emt 0:00:35]} 4. Qc2 {[%emt 0:00:00]} O-O {[%emt 0:00:58]} 5. a3 {[%emt 0:01:25]} Bxc3+ {[%emt 0:00:52]} 6. Qxc3 {[%emt 0:00:05]} b6 {[%emt 0:00:22]} 7. Nf3 {[%emt 0:01:06]} Bb7 {[%emt 0:00:25]} 8. Bg5 {[%emt 0:02:35]} d6 {[%emt 0:02:41]} 9. e3 {[%emt 0:01:17]} Nbd7 {[%emt 0:00:55]} 10. Be2 {[%emt 0:01:35]} c5 {[%emt 0:02:29]} 11. Bh4 {[%emt 0:04:43]} Rc8 {[%emt 0:02:49] LiveBook: 7 Games} 12. O-O {[%emt 0:06:22]} Qe8 {[%emt 0:04:08]} ({Black should try} 12... h6 $11) 13. dxc5 {[%emt 0:01:45]} Ne4 {[%emt 0:02:50]} 14. Qc2 {[%emt 0:02:17]} bxc5 {[%emt 0:00:56]} 15. Nd2 $14 {[%emt 0:08:09]} f5 {[%emt 0:06:49]} 16. Nxe4 {[%emt 0:16:16]} fxe4 {[%emt 0:00:34]} 17. Bg3 {[%emt 0:01:14]} Qe7 {[%emt 0:01:55]} 18. Rfd1 {[%emt 0:03:29]} d5 {[%emt 0:00:39]} 19. Rac1 {[%emt 0:09:21]} Qg5 {[%emt 0:03:41]} 20. Qa4 {[%emt 0:03:24]} Bc6 {[%emt 0:15:18]} 21. Qxa7 {[%emt 0:01:21]} Qd8 {[%emt 0:00:35]} 22. Bg4 {[%emt 0:04:08]} Rf6 {[%emt 0:11:22]} 23. cxd5 {[%emt 0:04:23]} Ra8 {[%emt 0:03:29]} 24. Qc7 {[%emt 0:00:12]} Qxc7 {[%emt 0:01:04]} 25. Bxc7 {[%emt 0:00:01]} Bxd5 {[%emt 0:00:08]} 26. Rxd5 {[%emt 0:10:53]} exd5 {[%emt 0:00:27]} 27. Bxd7 {[%emt 0:00:02]} Ra7 {[%emt 0:01:03]} 28. Be5 {[%emt 0:00:03]} Rxd7 {[%emt 0:02:09]} 29. Bxf6 {[%emt 0:00:11]} gxf6 {[%emt 0:00:03]} 30. Rxc5 {[%emt 0:00:05]} Kf7 {[%emt 0:00:29]} 31. Kf1 {[%emt 0:00:22]} d4 {[%emt 0:00:04]} 32. exd4 {[%emt 0:00:24]} Rxd4 {[%emt 0:00:06]} 33. Ke2 {[%emt 0:00:07]} Rd3 {[%emt 0:00:14]} 34. Rb5 {[%emt 0:00:39]} Ke6 {[%emt 0:01:25]} 35. f3 {[%emt 0:01:09]} exf3+ {[%emt 0:00:42]} 36. gxf3 {[%emt 0:00:21]} Rd4 {[%emt 0:00:08]} 37. Rb4 {[%emt 0:00:18]} Rd5 {[%emt 0:00:25]} 38. h4 {[%emt 0:01:01]} Kd6 {[%emt 0:01:45]} 39. Ke3 {[%emt 0:01:36]} Kc5 {[%emt 0:00:47]} 40. Rf4 {[%emt 0:00:00]} f5 {[%emt 0:00:00]} 41. Rb4 {[%emt 0:03:07]} Rd1 {[%emt 0:03:04]} 42. Kf4 {[%emt 0:00:34]} Rd3 {[%emt 0:00:12]} 43. h5 {[%emt 0:02:06]} Kc6 {[%emt 0:00:13]} 44. a4 {[%emt 0:00:29]} Rd5 {[%emt 0:00:13]} 45. b3 {[%emt 0:00:46]} Rd3 {[%emt 0:01:14]} 46. Rb5 {[%emt 0:02:00]} Rc3 {[%emt 0:00:08]} 47. Rb8 {[%emt 0:01:24]} Rd3 {[%emt 0:00:18]} 48. a5 {[%emt 0:03:51]} Kc7 {[%emt 0:00:05]} 49. Rb5 {[%emt 0:00:24]} Kc6 {[%emt 0:00:06]} 50. Rb6+ {[%emt 0:00:05]} Kc7 {[%emt 0:00:05]} 51. b4 {[%emt 0:00:07]} 1-0

[Event "13th Poti Nana Aleksandria Cup"]
[Site "Poti"]
[Date "2018.07.18"]
[Round "7"]
[White "Arakelyan, Nare"]
[Black "Avetisyan, Mariam"]
[Result "0-1"]
[ECO "C54"]
[WhiteElo "1834"]
[BlackElo "2051"]
[Annotator "NA"]
[PlyCount "138"]
[EventDate "2018.07.13"]
[EventType "swiss"]
[EventCountry "GEO"]
[SourceTitle "playchess.com"]
[Source "ChessBase"]
[SourceQuality "1"]
[TimeControl "40/5400+30:1800+30"]

1. e4 {[%emt 0:00:00]} e5 {[%emt 0:00:00]} 2. Nf3 {[%emt 0:00:05]} Nc6 {[%emt 0:00:00]} 3. Bc4 {[%emt 0:00:03]} Bc5 {[%emt 0:00:41]} 4. c3 {[%emt 0:00:39]} Nf6 {[%emt 0:01:02]} 5. d3 {[%emt 0:00:57]} d6 {[%emt 0:01:21]} 6. O-O {[%emt 0:00:21]} Bg4 {[%emt 0:15:46]} 7. b4 {[%emt 0:08:50]} Bb6 {[%emt 0:00:17]} 8. a4 {[%emt 0:00:47]} a5 {[%emt 0:03:51] C54: Italienische Partie (Hauptvariante)} (8... a6 9. h3 Be6 10. Bxe6 fxe6 11. Na3 Qd7 12. Nc4 Ba7 13. Be3 Bxe3 14. fxe3 O-O 15. b5 axb5 16. axb5 Ne7 {1-0 (47) Wilke,W (2214)-Rechberger,F (2134) Austria 2017}) 9. b5 {[%emt 0:04:53]} Nb8 {[%emt 0:04:05]} 10. Qb3 {[%emt 0:04:55]} O-O {[%emt 0:01:14]} 11. Nbd2 {[%emt 0:06:46]} Nbd7 {[%emt 0:07:26]} 12. Ng5 $146 {[%emt 0:05:21]} ({Vorgänger:} 12. d4 Bxf3 13. Nxf3 h6 14. Re1 Qe7 15. Ba3 Rae8 16. Nh4 exd4 {1-0 (47) Lasalle,A-Batschari,A France 1991}) 12... Qe7 {[%emt 0:03:55]} 13. h3 {[%emt 0:03:30]} Bh5 {[%emt 0:04:47]} 14. Qc2 {[%emt 0:04:29]} Kh8 {[%emt 0:05:07]} 15. Bb2 {[%emt 0:02:05]} ({Better is} 15. Ngf3 $14) 15... Ng8 {[%emt 0:03:23]} ({Besser ist} 15... Bg6 $15) 16. Ngf3 $1 {[%emt 0:01:05]} Nh6 {[%emt 0:02:25]} 17. Bd5 {[%emt 0:04:33]} Rab8 {[%emt 0:13:48]} 18. d4 {[%emt 0:15:21]} f5 {[%emt 0:04:57]} 19. exf5 {[%emt 0:08:17]} Rxf5 {[%emt 0:06:34]} 20. g4 {[%emt 0:03:13]} Nf6 {[%emt 0:00:25]} 21. gxf5 {[%emt 0:04:05]} Nxd5 {[%emt 0:00:03]} 22. Qe4 {[%emt 0:02:31]} Nf6 {[%emt 0:00:21]} 23. Qc2 {[%emt 0:01:06]} e4 {[%emt 0:02:26]} 24. Rfe1 {[%emt 0:00:17]} Qd7 {[%emt 0:02:18]} 25. Nh4 {[%emt 0:01:07]} Nxf5 {[%emt 0:00:59]} 26. Nxf5 {[%emt 0:01:23]} Qxf5 {[%emt 0:00:07]} 27. Re3 {[%emt 0:01:06]} Rf8 {[%emt 0:01:41]} 28. Rf1 {[%emt 0:05:22]} Nd5 {[%emt 0:02:09]} 29. Rg3 {[%emt 0:00:39]} Nf4 {[%emt 0:01:21]} 30. Kh2 {[%emt 0:02:36]} Ne2 {[%emt 0:00:26]} 31. Re3 {[%emt 0:02:12]} Qf4+ {[%emt 0:01:03]} 32. Kh1 {[%emt 0:01:56]} d5 {[%emt 0:01:25]} 33. Re1 {[%emt 0:02:08]} c6 {[%emt 0:05:57]} ({Nicht} 33... Qxf2 34. Rf1 $17) 34. R1xe2 {[%emt 0:00:58]} ({Reject} 34. R3xe2 Bc7 $19) 34... Bxe2 {[%emt 0:00:25]} 35. Rxe2 {[%emt 0:00:02]} Bc7 {[%emt 0:00:03]} 36. Nf1 {[%emt 0:01:36]} Qf3+ {[%emt 0:00:07]} 37. Kg1 {[%emt 0:00:15]} Rf6 {[%emt 0:00:45]} 38. Re3 {[%emt 0:01:00]} Rg6+ {[%emt 0:00:19]} 39. Ng3 {[%emt 0:00:09]} Rxg3+ {[%emt 0:00:16]} 40. fxg3 {[%emt 0:00:00]} Qxe3+ $19 {[%emt 0:00:00]} 41. Qf2 {[%emt 0:01:13]} Qxf2+ {[%emt 0:00:11]} 42. Kxf2 {[%emt 0:00:02]} Kg8 {[%emt 0:00:07]} 43. bxc6 {[%emt 0:00:51]} bxc6 {[%emt 0:02:47]} 44. Bc1 {[%emt 0:01:47]} Kf7 {[%emt 0:00:14]} 45. g4 {[%emt 0:00:36]} Kf6 {[%emt 0:00:26]} 46. h4 {[%emt 0:00:40]} g6 {[%emt 0:01:06]} 47. Bg5+ {[%emt 0:00:38]} Ke6 {[%emt 0:00:29]} 48. Bh6 {[%emt 0:01:06]} Bd8 {[%emt 0:00:31]} 49. Kg3 {[%emt 0:02:00]} Be7 {[%emt 0:00:38]} 50. Bd2 {[%emt 0:02:56]} Bd6+ {[%emt 0:00:25]} 51. Kg2 {[%emt 0:00:42]} Bc7 {[%emt 0:01:52]} 52. Bh6 {[%emt 0:00:48]} Bd8 {[%emt 0:00:56]} 53. Kg3 {[%emt 0:02:14]} Bb6 {[%emt 0:13:06]} 54. Be3 {[%emt 0:01:26]} Bc7+ {[%emt 0:00:03]} 55. Kg2 {[%emt 0:00:22]} h5 {[%emt 0:00:18]} 56. Kh3 {[%emt 0:00:33]} Bd6 {[%emt 0:00:11]} 57. Bg5 {[%emt 0:06:51]} c5 {[%emt 0:00:53]} 58. gxh5 {[%emt 0:03:09]} gxh5 {[%emt 0:00:14]} 59. dxc5 {[%emt 0:01:16]} Be5 {[%emt 0:08:02]} 60. Bd2 {[%emt 0:03:16]} Kd7 {[%emt 0:00:55]} 61. Kg2 {[%emt 0:04:03]} Kc6 {[%emt 0:00:04]} 62. c4 {[%emt 0:00:57]} dxc4 {[%emt 0:04:05]} 63. Bxa5 {[%emt 0:00:53]} c3 {[%emt 0:00:07]} 64. Kf2 {[%emt 0:00:26]} c2 {[%emt 0:00:07]} 65. Bd2 {[%emt 0:00:14]} Bb2 {[%emt 0:00:04]} 66. Ke3 {[%emt 0:00:14]} Kd5 {[%emt 0:00:03]} 67. c6 {[%emt 0:03:23]} c1=Q {[%emt 0:00:06]} 68. Bxc1 {[%emt 0:00:06]} Bxc1+ {[%emt 0:00:02]} 69. Ke2 {[%emt 0:00:09]} Kxc6 {[%emt 0:00:03]} 0-1

[Event "13th Poti Nana Aleksandria Cup"]
[Site "Poti"]
[Date "2018.07.18"]
[Round "7"]
[White "Tsotsonava, Elene"]
[Black "Pshmahov, Osman"]
[Result "1-0"]
[ECO "B09"]
[WhiteElo "1647"]
[BlackElo "2136"]
[Annotator "NA"]
[PlyCount "115"]
[EventDate "2018.07.13"]
[EventType "swiss"]
[EventCountry "GEO"]
[SourceTitle "playchess.com"]
[Source "ChessBase"]
[SourceQuality "1"]
[TimeControl "40/5400+30:1800+30"]

1. e4 {[%emt 0:00:00]} d6 {[%emt 0:00:00]} 2. d4 {[%emt 0:00:00]} Nf6 {[%emt 0:00:00]} 3. Nc3 {[%emt 0:00:00]} g6 {[%emt 0:00:00]} 4. f4 {[%emt 0:00:00]} Bg7 {[%emt 0:00:01]} 5. Nf3 {[%emt 0:00:00]} O-O {[%emt 0:00:23]} 6. Bd3 {[%emt 0:00:06] LiveBook: 2345 Partien} Bg4 {[%emt 0:02:16]} 7. h3 {[%emt 0:01:06]} Bxf3 {[%emt 0:00:22]} 8. Qxf3 {[%emt 0:00:06]} Nc6 {[%emt 0:00:25]} 9. Be3 {[%emt 0:00:10]} Nb4 {[%emt 0:01:22] B09: Pirc-Ufimzew-Verteidigung (Dreibauernangriff)} 10. O-O-O {[%emt 0:01:00]} c6 {[%emt 0:02:44]} 11. g4 {[%emt 0:02:27]} b5 $146 {[%emt 0:00:35]} ({Vorgänger:} 11... Qa5 12. Kb1 b5 13. g5 Nh5 14. f5 c5 15. a3 Nc6 16. Nd5 cxd4 17. Bd2 {½-½ (73) Janocha,W (2298)-Koziak,V (2461) Wroclaw 2007}) 12. h4 {[%emt 0:06:37]} Nxd3+ {[%emt 0:00:21]} 13. Rxd3 {[%emt 0:00:14]} b4 {[%emt 0:01:34]} 14. Ne2 {[%emt 0:00:12]} Qc8 {[%emt 0:01:00]} 15. f5 {[%emt 0:00:43]} c5 {[%emt 0:00:54] [#]} 16. h5 $1 {[%emt 0:03:56]} c4 {[%emt 0:01:04]} 17. Rdd1 {[%emt 0:00:08]} b3 {[%emt 0:03:29]} 18. hxg6 {[%emt 0:01:10]} fxg6 {[%emt 0:04:02]} 19. g5 {[%emt 0:09:34]} ({Don't do} 19. axb3 $6 cxb3 20. c3 Qa6 $16) (19. Nc3 $18) 19... bxa2 {[%emt 0:03:15]} 20. Kd2 {[%emt 0:00:10]} Nh5 {[%emt 0:08:36]} 21. Ng3 {[%emt 0:07:13]} Nxg3 {[%emt 0:09:41]} 22. Qxg3 {[%emt 0:00:14]} c3+ {[%emt 0:00:26]} 23. bxc3 {[%emt 0:00:48]} Qc4 {[%emt 0:00:17]} 24. Qh4 {[%emt 0:04:58]} Rfc8 {[%emt 0:00:14]} 25. Qxh7+ Kf8 26. f6 {[%emt 0:17:32]} Qxc3+ {[%emt 0:00:14]} 27. Ke2 {[%emt 0:00:08]} Qc4+ {[%emt 0:00:18]} 28. Kf3 {[%emt 0:01:27]} exf6 {[%emt 0:00:24]} 29. gxf6 {[%emt 0:03:10]} Bxf6 {[%emt 0:00:25]} 30. Qxg6 {[%emt 0:01:59]} Qf7 {[%emt 0:00:48]} 31. Qxf7+ {[%emt 0:01:33]} Kxf7 {[%emt 0:00:00]} 32. Rh7+ {[%emt 0:02:19]} Kf8 {[%emt 0:09:56]} 33. Rg1 {[%emt 0:04:44]} Rc3 {[%emt 0:00:23]} 34. Ke2 {[%emt 0:02:00]} Rxc2+ {[%emt 0:19:12]} 35. Kd3 {[%emt 0:01:33]} Rac8 {[%emt 0:00:34]} 36. Bh6+ Bg7 37. Bxg7+ {[%emt 0:05:48]} Kg8 {[%emt 0:01:05]} 38. Rh8+ {[%emt 0:00:10]} Kf7 {[%emt 0:00:03]} 39. Rxc8 {[%emt 0:00:08]} Rxc8 {[%emt 0:00:30]} 40. Bh6 {[%emt 0:00:19]} Rh8 {[%emt 0:00:31]} 41. Bd2 {[%emt 0:01:39]} Rh3+ {[%emt 0:00:10]} 42. Kc4 {[%emt 0:00:48]} Rh4 {[%emt 0:01:52]} 43. Kd3 {[%emt 0:01:38]} Rh3+ {[%emt 0:00:16]} 44. Be3 {[%emt 0:00:10]} Ke6 {[%emt 0:00:55]} 45. Ra1 {[%emt 0:01:37]} Rh2 {[%emt 0:00:03]} 46. Bd2 {[%emt 0:00:09]} Rh3+ {[%emt 0:00:04]} 47. Kc4 {[%emt 0:00:36]} Rh4 $18 {[%emt 0:00:44]} 48. Rxa2 {[%emt 0:01:45]} Rxe4 {[%emt 0:00:05]} 49. Rxa7 {[%emt 0:00:17]} Rh4 {[%emt 0:00:07]} 50. Bb4 {[%emt 0:00:40]} Rh8 {[%emt 0:01:52]} 51. d5+ {[%emt 0:00:37]} Kf5 {[%emt 0:00:09]} 52. Bxd6 {[%emt 0:00:18]} Rh1 {[%emt 0:00:36]} 53. Bc5 {[%emt 0:01:59]} Rc1+ {[%emt 0:00:15]} 54. Kb5 {[%emt 0:00:10]} Ke5 {[%emt 0:00:03]} 55. Kc6 {[%emt 0:00:28]} Rh1 {[%emt 0:00:04]} 56. d6 {[%emt 0:00:35]} Rh6 {[%emt 0:00:05]} 57. Re7+ {[%emt 0:00:13]} Kf5 {[%emt 0:00:01]} 58. Kc7 {[%emt 0:00:12]} 1-0

[Event "13th Poti Nana Aleksandria Cup"]
[Site "Poti"]
[Date "2018.07.19"]
[Round "8"]
[White "Hayrapetyan, Hovik"]
[Black "Matevosyan, Sedrak"]
[Result "1-0"]
[ECO "A05"]
[WhiteElo "2453"]
[BlackElo "2161"]
[Annotator "RC"]
[PlyCount "119"]
[EventDate "2018.07.13"]
[EventType "swiss"]
[EventCountry "GEO"]
[SourceTitle "playchess.com"]
[Source "ChessBase"]
[SourceQuality "1"]
[TimeControl "40/5400+30:1800+30"]

1. Nf3 {[%emt 0:05:57]} Nf6 {[%emt 0:00:00]} 2. c4 {[%emt 0:00:25]} e6 {[%emt 0:00:00]} 3. g3 {[%emt 0:00:34]} b6 {[%emt 0:00:22]} 4. Bg2 {[%emt 0:00:07]} Bb7 {[%emt 0:00:04]} 5. O-O {[%emt 0:00:25]} c5 {[%emt 0:00:26]} 6. Nc3 {[%emt 0:01:00]} a6 {[%emt 0:00:58]} 7. b3 {[%emt 0:04:58]} d6 {[%emt 0:00:35]} 8. d4 {[%emt 0:03:04]} cxd4 {[%emt 0:00:25]} 9. Qxd4 {[%emt 0:00:16]} Nbd7 {[%emt 0:00:17]} 10. Bb2 {[%emt 0:00:36]} Be7 {[%emt 0:00:48]} 11. Rad1 {[%emt 0:16:26]} O-O {[%emt 0:14:00]} 12. Ba3 {[%emt 0:22:50]} Nc5 {[%emt 0:02:58]} 13. Bxc5 {[%emt 0:04:43]} bxc5 {[%emt 0:04:05]} 14. Qf4 {[%emt 0:01:45]} Qa5 {[%emt 0:06:55]} 15. Rd3 {[%emt 0:03:50]} Rad8 {[%emt 0:13:17]} 16. Rfd1 {[%emt 0:02:47]} Qb4 {[%emt 0:15:33]} 17. Ng5 {[%emt 0:05:05]} d5 {[%emt 0:11:08]} 18. cxd5 {[%emt 0:02:32]} exd5 {[%emt 0:01:32]} 19. Nxd5 {[%emt 0:09:45]} Nxd5 {[%emt 0:02:03]} 20. Bxd5 {[%emt 0:00:39]} Bxd5 {[%emt 0:00:32]} 21. Rxd5 {[%emt 0:00:28]} Rxd5 {[%emt 0:01:26]} 22. Rxd5 {[%emt 0:00:01]} Qe1+ {[%emt 0:00:29]} 23. Kg2 {[%emt 0:00:00]} Bxg5 {[%emt 0:00:51]} 24. Rxg5 {[%emt 0:04:55]} Qxe2 {[%emt 0:03:35]} 25. Qe5 {[%emt 0:02:10]} Qxe5 {[%emt 0:00:36]} 26. Rxe5 {[%emt 0:00:02]} Rc8 {[%emt 0:01:37]} 27. Kf3 {[%emt 0:00:05]} f6 {[%emt 0:15:06]} 28. Re4 {[%emt 0:00:09]} Rd8 {[%emt 0:00:51]} 29. Ra4 {[%emt 0:01:30]} Rd6 {[%emt 0:00:07]} 30. Ra5 {[%emt 0:02:18]} Rc6 {[%emt 0:00:28]} 31. Ke3 {[%emt 0:00:17]} c4 {[%emt 0:01:57]} 32. b4 {[%emt 0:00:57]} Rd6 {[%emt 0:00:39]} 33. Ke2 {[%emt 0:02:54]} Kf7 {[%emt 0:02:04]} 34. Rc5 {[%emt 0:01:05]} Rd4 {[%emt 0:00:07]} 35. Rc6 {[%emt 0:00:39]} a5 {[%emt 0:00:58]} 36. bxa5 {[%emt 0:01:39]} c3 {[%emt 0:00:31]} 37. Rxc3 {[%emt 0:00:15]} Ra4 {[%emt 0:00:04]} 38. a3 {[%emt 0:00:55]} g5 {[%emt 0:00:13]} 39. h3 {[%emt 0:00:42]} h5 {[%emt 0:00:14]} 40. Kd3 {[%emt 0:00:00]} Rxa5 {[%emt 0:00:00]} 41. Kc4 {[%emt 0:02:46]} Ra8 {[%emt 0:09:02]} 42. Kb3 {[%emt 0:00:20]} Rb8+ {[%emt 0:00:10]} 43. Ka2 {[%emt 0:00:06]} Ra8 {[%emt 0:01:30]} 44. Rc4 {[%emt 0:01:08]} Ke6 {[%emt 0:01:33]} 45. a4 {[%emt 0:01:38]} Kd5 {[%emt 0:00:51]} 46. Kb3 {[%emt 0:00:22]} f5 {[%emt 0:01:02]} 47. h4 {[%emt 0:07:53]} g4 {[%emt 0:03:11]} 48. Rf4 {[%emt 0:00:22]} Ke5 {[%emt 0:03:54]} 49. Kb4 {[%emt 0:00:21]} Rb8+ {[%emt 0:01:43]} 50. Kc5 {[%emt 0:00:09]} Ra8 {[%emt 0:01:41]} 51. Kb6 {[%emt 0:00:28]} Rb8+ {[%emt 0:00:29]} 52. Kc6 {[%emt 0:00:20]} Rc8+ {[%emt 0:03:05]} 53. Kb7 {[%emt 0:00:38]} Rc2 {[%emt 0:00:05]} 54. a5 {[%emt 0:00:19]} Rb2+ {[%emt 0:00:05]} 55. Kc6 {[%emt 0:00:56]} Ra2 {[%emt 0:00:10]} 56. Kb5 {[%emt 0:00:18]} Rb2+ {[%emt 0:00:04]} 57. Rb4 {[%emt 0:02:37]} Rxf2 {[%emt 0:00:06]} 58. a6 {[%emt 0:00:02]} Ra2 {[%emt 0:04:05]} 59. Ra4 {[%emt 0:00:21]} Rb2+ {[%emt 0:00:06]} 60. Ka5 {[%emt 0:00:05]} 1-0

[Event "13th Poti Nana Aleksandria Cup"]
[Site "Poti"]
[Date "2018.07.19"]
[Round "8"]
[White "Chkhaidze, Nikoloz"]
[Black "Gharagyozyan, Artur"]
[Result "1-0"]
[ECO "D52"]
[WhiteElo "2337"]
[BlackElo "2302"]
[Annotator "NA"]
[PlyCount "91"]
[EventDate "2018.07.13"]
[EventType "swiss"]
[EventCountry "GEO"]
[SourceTitle "playchess.com"]
[Source "ChessBase"]
[SourceQuality "1"]
[TimeControl "40/5400+30:1800+30"]

1. d4 {[%emt 0:00:00]} Nf6 {[%emt 0:08:33]} 2. c4 {[%emt 0:00:00]} e6 {[%emt 0:00:09]} 3. Nc3 {[%emt 0:00:00]} d5 {[%emt 0:00:24]} 4. Nf3 {[%emt 0:00:00]} c6 {[%emt 0:00:08]} 5. Bg5 {[%emt 0:00:07]} Nbd7 {[%emt 0:00:33]} 6. e3 {[%emt 0:00:04]} Qa5 {[%emt 0:00:47]} 7. Nd2 {[%emt 0:00:11]} dxc4 {[%emt 0:00:15]} 8. Bxf6 {[%emt 0:00:27]} Nxf6 {[%emt 0:00:07]} 9. Nxc4 {[%emt 0:00:28]} Qd8 {[%emt 0:00:14]} 10. Be2 {[%emt 0:02:52]} Nd5 {[%emt 0:01:15] D52: Queen's Gambit Declined: Cambridge Springs Variation} (10... Be7 11. O-O O-O 12. Bf3 Nd5 13. Rc1 Nxc3 14. Rxc3 Bf6 15. b4 Qe7 16. Qb3 e5 17. dxe5 Bxe5 18. Nxe5 Qxe5 {½-½ (38) Lubczynski,R (2418)-Butkiewicz,L (2462) Poronin 2017}) 11. O-O {[%emt 0:00:35]} Be7 {[%emt 0:01:02]} 12. Ne5 {[%emt 0:05:21]} O-O {[%emt 0:00:39]} 13. Rc1 {[%emt 0:00:21]} Bd6 {[%emt 0:00:45]} 14. Bd3 $146 {[%emt 0:03:42]} ({Predecessor:} 14. Ne4 Bxe5 15. dxe5 Qb6 16. Qd2 Rd8 17. Rfd1 Bd7 18. a3 Be8 19. Qc2 h6 20. Nd6 Kf8 21. Qc5 Qxc5 22. Rxc5 b6 23. Rc2 c5 {½-½ (23) Meyer,H (2305)-Hahner,A Potsdam 1997}) 14... Nxc3 {[%emt 0:04:16]} 15. Rxc3 {[%emt 0:00:21]} Bxe5 {[%emt 0:00:13]} 16. dxe5 {[%emt 0:00:26]} Qd5 {[%emt 0:00:37]} 17. Qb1 {[%emt 0:07:08]} Qxe5 {[%emt 0:02:14]} 18. Bxh7+ {[%emt 0:00:09]} Kh8 {[%emt 0:00:01]} 19. f4 {[%emt 0:04:12]} Qf6 {[%emt 0:01:22]} 20. Bc2 {[%emt 0:00:40]} g6 {[%emt 0:00:18]} 21. e4 {[%emt 0:01:28]} Kg7 {[%emt 0:02:43]} 22. e5 {[%emt 0:08:27]} Qe7 {[%emt 0:00:15] [#]} 23. Rg3 $1 {[%emt 0:01:34]} Qe8 $18 {[%emt 0:04:14]} 24. Rd1 {[%emt 0:06:36]} Rh8 {[%emt 0:04:06]} 25. Rd6 {[%emt 0:08:46]} Rh6 {[%emt 0:02:03]} 26. Qd1 {[%emt 0:06:21]} Qe7 {[%emt 0:00:34]} 27. h3 {[%emt 0:05:18]} Qc7 {[%emt 0:03:31]} 28. Kh2 {[%emt 0:01:05]} a5 {[%emt 0:09:44]} 29. Qd4 {[%emt 0:09:57]} c5 {[%emt 0:01:12]} 30. Qc3 {[%emt 0:07:00]} b5 {[%emt 0:00:03]} 31. Be4 {[%emt 0:01:52]} Ra6 {[%emt 0:02:03]} 32. f5 {[%emt 0:01:30]} exf5 {[%emt 0:06:35]} 33. e6+ {[%emt 0:00:14]} Kh7 {[%emt 0:06:35]} 34. Rxa6 {[%emt 0:00:37]} Bxa6 {[%emt 0:00:18]} 35. Bxf5 {[%emt 0:01:25]} fxe6 {[%emt 0:01:37]} 36. Bxe6 {[%emt 0:01:50]} Rh5 {[%emt 0:04:35]} 37. Qf6 {[%emt 0:00:50]} Qg7 {[%emt 0:00:38]} 38. Qf4 {[%emt 0:05:47]} Bb7 {[%emt 0:03:17]} 39. Bf7 {[%emt 0:06:22]} Be4 {[%emt 0:01:06]} 40. Re3 {[%emt 0:00:00]} Rf5 {[%emt 0:00:00]} 41. Bxg6+ {[%emt 0:06:59]} Qxg6 {[%emt 0:06:59]} 42. Qxe4 {[%emt 0:00:04]} Qd6+ {[%emt 0:01:21]} 43. Rg3 {[%emt 0:01:08]} Qf4 {[%emt 0:00:50]} 44. Qe8 {[%emt 0:05:52]} Qe5 {[%emt 0:03:44]} 45. Qg8+ {[%emt 0:00:11]} Kh6 {[%emt 0:00:05]} 46. Qg6# {[%emt 0:00:05]} 1-0

[Event "13th Poti Nana Aleksandria Cup"]
[Site "Poti"]
[Date "2018.07.19"]
[Round "8"]
[White "Matsenko, Andrei"]
[Black "Yeritsyan, Hayk"]
[Result "1/2-1/2"]
[ECO "A05"]
[WhiteElo "2299"]
[BlackElo "2178"]
[Annotator "NA"]
[PlyCount "44"]
[EventDate "2018.07.13"]
[EventType "swiss"]
[EventCountry "GEO"]
[SourceTitle "playchess.com"]
[Source "ChessBase"]
[SourceQuality "1"]
[TimeControl "40/5400+30:1800+30"]

1. Nf3 {[%emt 0:00:00]} Nf6 {[%emt 0:00:19]} 2. g3 {[%emt 0:00:00]} g6 {[%emt 0:00:19]} 3. b3 {[%emt 0:00:00]} Bg7 {[%emt 0:00:11]} 4. Bb2 {[%emt 0:00:00]} c5 {[%emt 0:00:49]} 5. c4 {[%emt 0:00:23]} O-O {[%emt 0:00:33]} 6. Bg2 {[%emt 0:00:32]} Nc6 {[%emt 0:01:33]} 7. O-O {[%emt 0:00:50]} d6 {[%emt 0:02:48]} 8. d4 {[%emt 0:01:43]} Ne4 {[%emt 0:25:06]} 9. Nbd2 {[%emt 0:07:06]} Nxd2 {[%emt 0:02:15]} 10. Qxd2 {[%emt 0:01:14]} Bg4 {[%emt 0:02:41]} 11. e3 {[%emt 0:03:01] LiveBook: 4 Games} a5 $146 {[%emt 0:02:15] A49: 1 d4 Nf6 2 Nf3 g6 3 g3: Anti-King's Indian systems} ({Predecessor:} 11... h6 12. h3 Bc8 13. Rad1 Qc7 14. d5 Nb8 15. e4 Nd7 16. Rfe1 Bxb2 17. Qxb2 Ne5 18. Nh2 g5 19. f4 {½-½ (32) Landa,K (2617)-Akash Pc,I (2300) Escaldes 2017}) 12. Ne1 {[%emt 0:07:08]} a4 {[%emt 0:04:22]} 13. d5 {[%emt 0:02:31]} Bxb2 {[%emt 0:00:52]} ({Lieber} 13... Qa5 $11 14. Qc1 Ne5) 14. Qxb2 {[%emt 0:00:06]} Na5 {[%emt 0:00:20]} 15. Nd3 {[%emt 0:02:37]} b5 {[%emt 0:05:14]} 16. cxb5 {[%emt 0:04:07]} axb3 $14 {[%emt 0:05:36]} 17. axb3 {[%emt 0:00:26]} Qb6 {[%emt 0:01:12]} 18. b4 {[%emt 0:06:52]} cxb4 {[%emt 0:04:31]} 19. Ra4 {[%emt 0:00:43]} Qxb5 {[%emt 0:03:41]} 20. Rxb4 {[%emt 0:00:10]} Qxd3 {[%emt 0:01:00]} 21. Rxg4 {[%emt 0:00:04]} Rfb8 {[%emt 0:00:57]} 22. Rb4 {[%emt 0:01:28]} Rxb4 {[%emt 0:00:05]} 1/2-1/2